bitfinex-derivatives/quotes_BTCF0:USTF0_20250614
["timestamp","ask_amount","ask_price","bid_price","bid_amount"]
[1749863190243,0.36494186,105590.0,105580.0,2.53071679]
[1749863190441,0.36494186,105590.0,105580.0,2.51747896]
[1749863190647,0.36494186,105590.0,105580.0,2.5026785]
[1749863190951,0.36494186,105590.0,105580.0,2.53071681]
[1749863191153,0.36494186,105590.0,105580.0,2.51747897]
[1749863191449,0.36494186,105590.0,105580.0,2.5026785]
[1749863191653,0.36494186,105590.0,105580.0,2.53070872]
[1749863191849,0.36494186,105590.0,105580.0,2.5307087]
[1749863192055,0.36494186,105590.0,105580.0,2.53070709]
[1749863192248,0.36494186,105590.0,105580.0,2.51747895]
[1749863192557,0.36494186,105590.0,105580.0,2.32390635]
[1749863192746,0.36494186,105590.0,105580.0,2.56390473]
[1749863193150,0.36494186,105590.0,105580.0,2.5639048]
[1749863193343,0.36494186,105590.0,105580.0,2.56390472]
[1749863193549,0.36494186,105590.0,105580.0,2.56390471]
[1749863193750,0.36908021,105590.0,105580.0,2.56390471]
[1749863193950,0.36908021,105590.0,105580.0,2.54910427]
[1749863194149,0.36908021,105590.0,105580.0,2.56390472]
[1749863194654,0.42748292,105590.0,105580.0,2.50647895]
[1749863194854,0.42748292,105590.0,105580.0,2.4916785]
[1749863195064,0.42648292,105590.0,105580.0,2.51970711]
[1749863195258,0.42648292,105590.0,105580.0,2.4916785]
[1749863195561,0.42648292,105590.0,105580.0,2.50490666]
[1749863195855,0.42648292,105590.0,105580.0,2.4916785]
[1749863196060,0.42648292,105590.0,105580.0,1.4756785]
[1749863196256,0.42648292,105590.0,105580.0,2.4901585]
[1749863196457,0.42648292,105590.0,105580.0,2.51815225]
[1749863196662,0.42648292,105590.0,105580.0,2.50495867]
[1749863196868,0.42648292,105590.0,105580.0,2.51815228]
[1749863197158,0.25500352,105590.0,105580.0,2.50334971]
[1749863197363,0.25500352,105590.0,105580.0,2.5623475]
[1749863197663,0.06568292,105590.0,105580.0,2.56232968]
[1749863197962,0.06568292,105590.0,105580.0,2.56232964]
[1749863198353,0.06568292,105590.0,105580.0,2.54752519]
[1749863198560,0.06568292,105590.0,105580.0,2.54915611]
[1749863198761,0.25500252,105590.0,105580.0,2.56230637]
[1749863198958,0.25500252,105590.0,105580.0,2.54750512]
[1749863199162,0.25500252,105590.0,105580.0,2.56230495]
[1749863199463,0.06568292,105590.0,105580.0,2.54750501]
[1749863199652,0.06568292,105590.0,105580.0,2.56230196]
[1749863199857,0.06568292,105590.0,105580.0,2.56230197]
[1749863200160,0.06568292,105590.0,105580.0,2.53435612]
[1749863200355,0.06568292,105590.0,105580.0,2.54750228]
[1749863200561,0.06568292,105590.0,105580.0,2.53447738]
[1749863200761,0.06568292,105590.0,105580.0,2.54927719]
[1749863200955,0.06568292,105590.0,105580.0,2.53447738]
[1749863201150,0.06568292,105590.0,105580.0,2.54762338]
[1749863201454,0.06568292,105590.0,105580.0,2.54762685]
[1749863201654,0.06568292,105590.0,105580.0,2.54766588]
[1749863201954,0.06568292,105590.0,105580.0,2.53447738]
[1749863202157,0.06568292,105590.0,105580.0,2.50495831]
[1749863202360,0.06568292,105590.0,105580.0,2.4901585]
[1749863202558,0.06568292,105590.0,105580.0,2.50330886]
[1749863202763,0.06154457,105590.0,105580.0,2.50495831]
[1749863203359,0.14933796,105590.0,105580.0,2.56242759]
[1749863203555,0.14933796,105590.0,105580.0,2.54762759]
[1749863203759,0.14933796,105590.0,105580.0,2.54927719]
[1749863203959,0.14933796,105590.0,105580.0,2.56242697]
[1749863204166,0.14933796,105590.0,105580.0,2.56242651]
[1749863204362,0.14933796,105590.0,105580.0,2.53447738]
[1749863204659,0.06154457,105590.0,105580.0,2.60821281]
[1749863204862,0.00314186,105590.0,105580.0,2.9544045]
[1749863205165,0.00314186,105590.0,105580.0,1.92512578]
[1749863205366,0.00314186,105590.0,105580.0,2.95052405]
[1749863205559,0.00314186,105590.0,105580.0,2.93572578]
[1749863205759,0.00314186,105590.0,105580.0,2.95052402]
[1749863206163,0.00314186,105590.0,105580.0,2.93572578]
[1749863206462,0.00314186,105590.0,105580.0,2.94612888]
[1749863206661,0.00314186,105590.0,105580.0,2.96092711]
[1749863206968,0.00314186,105590.0,105580.0,2.95052401]
[1749863207163,0.00314186,105590.0,105580.0,2.96092711]
[1749863207362,6e-08,105590.0,105580.0,2.960927]
[1749863207665,6e-08,105590.0,105580.0,3.07491062]
[1749863207967,0.05840271,105620.0,105610.0,0.1892833]
[1749863208267,0.05854457,105630.0,105620.0,0.1892654]
[1749863208459,0.06980761,105630.0,105620.0,0.68881665]
[1749863208662,0.06980761,105630.0,105620.0,0.72011665]
[1749863208859,0.06980761,105630.0,105620.0,0.66542147]
[1749863209061,0.06980761,105630.0,105620.0,0.67581848]
[1749863209260,0.06980761,105630.0,105620.0,1.05567159]
[1749863209460,0.06980761,105630.0,105620.0,1.07046516]
[1749863209659,0.06980761,105630.0,105620.0,1.05567159]
[1749863209964,0.06980761,105630.0,105620.0,1.02182485]
[1749863210165,0.06980761,105630.0,105620.0,1.0366202]
[1749863210466,0.07280761,105630.0,105620.0,1.02176913]
[1749863210655,0.07280761,105630.0,105620.0,1.00697573]
[1749863210854,0.07280761,105630.0,105620.0,1.02166875]
[1749863211062,0.26205601,105630.0,105620.0,0.40930335]
[1749863211265,0.71625601,105630.0,105620.0,1.2103463]
[1749863211760,0.71625601,105630.0,105620.0,2.03122287]
[1749863211761,0.77465872,105630.0,105620.0,2.03122287]
[1749863212161,0.77465872,105630.0,105620.0,2.03106283]
[1749863212960,0.77465872,105630.0,105620.0,1.02238283]
[1749863213363,0.71625601,105630.0,105620.0,2.03054283]
[1749863213664,0.71625601,105630.0,105620.0,1.02238286]
[1749863213861,0.1892842,105610.0,105600.0,0.09479106]
[1749863214067,0.61974995,105610.0,105600.0,2.12535559]
[1749863214372,0.71394995,105610.0,105600.0,2.13838456]
[1749863214560,0.71394995,105610.0,105600.0,1.11538794]
[1749863214761,1.07474995,105610.0,105600.0,2.13825922]
[1749863214960,1.07474995,105610.0,105600.0,2.13826891]
[1749863215165,1.07474995,105610.0,105600.0,2.12348525]
[1749863215366,1.07474995,105610.0,105600.0,2.13828433]
[1749863215562,1.07474995,105610.0,105600.0,2.13829819]
[1749863215763,1.07574995,105610.0,105600.0,2.1472364]
[1749863215962,1.07574995,105610.0,105600.0,2.14549212]
[1749863216158,1.07574995,105610.0,105600.0,2.14723633]
[1749863216364,1.07574995,105610.0,105600.0,2.14723617]
[1749863216668,1.07474995,105610.0,105600.0,2.13826123]
[1749863216863,1.08074995,105610.0,105600.0,2.12346243]
[1749863217070,1.08074995,105610.0,105600.0,2.13826126]
[1749863217563,1.08074995,105610.0,105600.0,2.13826127]
[1749863217969,1.08074995,105610.0,105600.0,2.13827042]
[1749863218369,1.08074995,105610.0,105600.0,2.13826926]
[1749863218567,1.08074995,105610.0,105600.0,2.10343736]
[1749863218771,1.13915266,105610.0,105600.0,2.11823666]
[1749863218966,1.13915266,105610.0,105600.0,2.13052936]
[1749863219166,1.13915266,105610.0,105600.0,2.11743668]
[1749863219365,1.13915266,105610.0,105600.0,2.13052179]
[1749863219567,1.13915266,105610.0,105600.0,2.13052171]
[1749863219766,1.13915266,105610.0,105600.0,2.13052172]
[1749863219967,1.13915266,105610.0,105600.0,2.11743661]
[1749863220173,1.13915266,105610.0,105600.0,2.13054383]
[1749863220364,1.13915266,105610.0,105600.0,2.13054105]
[1749863220672,1.13915266,105610.0,105600.0,2.11743658]
[1749863220871,1.13915266,105610.0,105600.0,2.13053766]
[1749863221072,1.13915266,105610.0,105600.0,2.1305382]
[1749863221371,1.13915266,105610.0,105600.0,2.11743653]
[1749863221873,1.13915266,105610.0,105600.0,2.11743661]
[1749863222175,1.13915266,105610.0,105600.0,1.11715658]
[1749863222373,1.13915266,105610.0,105600.0,2.11623661]
[1749863222568,1.13915266,105610.0,105600.0,2.10143736]
[1749863222768,1.13915266,105610.0,105600.0,2.11623662]
[1749863223075,1.13915266,105610.0,105600.0,2.1162366]
[1749863223277,1.13915266,105610.0,105600.0,2.11453505]
[1749863223467,1.13915266,105610.0,105600.0,2.12932781]
[1749863223769,1.07745266,105610.0,105600.0,2.11176738]
[1749863223976,1.01904995,105610.0,105600.0,2.17436719]
[1749863224172,1.01904995,105610.0,105600.0,2.16403736]
[1749863224472,1.01904995,105610.0,105600.0,2.17436716]
[1749863224673,1.01904995,105610.0,105600.0,2.16403736]
[1749863224872,1.01304995,105610.0,105600.0,2.16403736]
[1749863225071,0.29544995,105610.0,105600.0,2.18916566]
[1749863225269,0.65624995,105610.0,105600.0,2.17883587]
[1749863225573,0.65624995,105610.0,105600.0,2.1788352]
[1749863225777,0.65624995,105610.0,105600.0,2.17883523]
[1749863225982,0.65624995,105610.0,105600.0,2.17436687]
[1749863226278,0.65624995,105610.0,105600.0,2.17883497]
[1749863226473,0.62374995,105610.0,105600.0,2.18917239]
[1749863226777,0.3648,105610.0,105600.0,2.16403736]
[1749863226964,0.3648,105610.0,105600.0,2.17883471]
[1749863227170,0.3648,105610.0,105600.0,2.20824789]
[1749863227375,0.3648,105610.0,105600.0,2.23337831]
[1749863227573,0.3648,105610.0,105600.0,2.23337834]
[1749863227972,0.3648,105610.0,105600.0,2.23337829]
[1749863228277,0.692041,105620.0,105610.0,0.1892842]
[1749863228473,0.71438635,105620.0,105610.0,0.26668084]
[1749863228679,0.71438635,105620.0,105610.0,0.30781365]
[1749863228875,0.3608,105620.0,105610.0,0.2930171]
[1749863229076,0.61973205,105620.0,105610.0,0.30781384]
[1749863229284,0.61973205,105620.0,105610.0,0.30781363]
[1749863229477,0.62373205,105620.0,105610.0,0.29301712]
[1749863229677,0.62373205,105620.0,105610.0,0.29748085]
[1749863229875,0.62373205,105620.0,105610.0,0.29748093]
[1749863230078,0.62373205,105620.0,105610.0,0.29301715]
[1749863230274,0.62373205,105620.0,105610.0,0.29301713]
[1749863230475,0.62373205,105620.0,105610.0,0.29301709]
[1749863230677,0.62373205,105620.0,105610.0,0.30781031]
[1749863230883,0.62373205,105620.0,105610.0,0.30781032]
[1749863231082,0.62373205,105620.0,105610.0,0.2826842]
[1749863231284,0.62373205,105620.0,105610.0,0.29301715]
[1749863231479,0.62373205,105620.0,105610.0,0.2826842]
[1749863231679,0.62373205,105620.0,105610.0,0.30779651]
[1749863231880,0.62373205,105620.0,105610.0,0.29300322]
[1749863232088,0.62373205,105620.0,105610.0,0.30779654]
[1749863232385,0.65403205,105620.0,105610.0,0.30779668]
[1749863232680,0.65403205,105620.0,105610.0,0.30779661]
[1749863232880,0.65403205,105620.0,105610.0,0.29300327]
[1749863233084,0.65403205,105620.0,105610.0,0.29747771]
[1749863233283,0.65403205,105620.0,105610.0,0.29300338]
[1749863233581,0.65403205,105620.0,105610.0,0.3076982]
[1749863233783,0.65403205,105620.0,105610.0,0.29737901]
[1749863234080,0.65403205,105620.0,105610.0,0.29300338]
[1749863234383,0.65403205,105620.0,105610.0,0.30769825]
[1749863234581,0.71243476,105620.0,105610.0,0.30769825]
[1749863234771,0.71243476,105620.0,105610.0,0.30769822]
[1749863234979,0.71243476,105620.0,105610.0,0.30769819]
[1749863235182,0.71243476,105620.0,105610.0,0.29737901]
[1749863235378,0.71243476,105620.0,105610.0,0.30769819]
[1749863235878,0.71243476,105620.0,105610.0,0.30770112]
[1749863236180,0.71243476,105620.0,105610.0,0.30770109]
[1749863236385,0.71243476,105620.0,105610.0,0.29737901]
[1749863236583,0.71243476,105620.0,105610.0,0.29299395]
[1749863236885,0.71243476,105620.0,105610.0,0.30768881]
[1749863237479,0.71243476,105620.0,105610.0,0.29299396]
[1749863237680,0.71243476,105620.0,105610.0,0.30768878]
[1749863237985,0.68213476,105620.0,105610.0,0.30768875]
[1749863238174,0.68213476,105620.0,105610.0,0.2826842]
[1749863238380,0.68213476,105620.0,105610.0,0.3076886]
[1749863238583,0.62373205,105620.0,105610.0,0.29299388]
[1749863238776,0.62373205,105620.0,105610.0,0.30770612]
[1749863238982,0.69979298,105620.0,105610.0,0.30771833]
[1749863239282,0.69979298,105620.0,105610.0,0.29714443]
[1749863239485,0.69979298,105620.0,105610.0,0.30153464]
[1749863239688,0.69979298,105620.0,105610.0,0.3118565]
[1749863239884,0.07366575,105620.0,105610.0,0.35606679]
[1749863240084,0.07366575,105620.0,105610.0,0.35606625]
[1749863240085,0.26293205,105620.0,105610.0,0.35606625]
[1749863240384,0.62373205,105620.0,105610.0,0.40041603]
[1749863240585,0.26293205,105620.0,105610.0,0.41508846]
[1749863240787,0.62373205,105620.0,105610.0,0.41508846]
[1749863241087,0.62373205,105620.0,105610.0,0.4151288]
[1749863241584,0.62373205,105620.0,105610.0,0.35609862]
[1749863241794,0.62373205,105620.0,105610.0,0.34574588]
[1749863241985,0.62373205,105620.0,105610.0,0.35609865]
[1749863242186,0.26293205,105620.0,105610.0,0.73174966]
[1749863242388,0.26293205,105620.0,105610.0,0.72139654]
[1749863242592,0.26293205,105620.0,105610.0,0.35623661]
[1749863242794,0.26293205,105620.0,105610.0,0.36623661]
[1749863242991,0.26293205,105620.0,105610.0,0.38094924]
[1749863243193,0.62373205,105620.0,105610.0,0.4148838]
[1749863243391,0.26293205,105620.0,105610.0,0.42523645]
[1749863243583,0.43446575,105620.0,105610.0,0.41488384]
[1749863243895,0.62373205,105620.0,105610.0,0.36623672]
[1749863244086,0.62373205,105620.0,105610.0,0.3662368]
[1749863244282,0.62373205,105620.0,105610.0,0.38094943]
[1749863244487,0.62373205,105620.0,105610.0,0.34110196]
[1749863244688,0.62373205,105620.0,105610.0,0.3661673]
[1749863244888,0.26293205,105620.0,105610.0,0.34110196]
[1749863245088,0.26293205,105620.0,105610.0,0.36616733]
[1749863245290,0.004,105620.0,105610.0,0.35145464]
[1749863245594,0.004,105620.0,105610.0,0.53145452]
[1749863245794,0.004,105620.0,105610.0,0.5314545]
[1749863245995,0.1932663,105620.0,105610.0,0.52110196]
[1749863246197,0.004,105620.0,105610.0,0.53145457]
[1749863246395,0.004,105620.0,105610.0,0.5314546]
[1749863246597,0.004,105620.0,105610.0,0.8922546]
[1749863246896,0.004,105620.0,105610.0,0.53145448]
[1749863247491,0.004,105620.0,105610.0,0.89225441]
[1749863247697,0.73493637,105630.0,105620.0,0.1892665]
[1749863247898,0.80460212,105630.0,105620.0,2.00873895]
[1749863248198,0.80460212,105630.0,105620.0,2.00873899]
[1749863248390,0.83650212,105630.0,105620.0,2.00873899]
[1749863248590,0.83650212,105630.0,105620.0,1.9983865]
[1749863249195,0.83650212,105630.0,105620.0,2.00873906]
[1749863249398,0.84050212,105630.0,105620.0,2.00873905]
[1749863249696,0.92829551,105630.0,105620.0,2.00871944]
[1749863249889,0.92829551,105630.0,105620.0,2.00871943]
[1749863250085,0.92829551,105630.0,105620.0,1.9983865]
[1749863250293,0.92829551,105630.0,105620.0,2.00871943]
[1749863250492,0.92829551,105630.0,105620.0,2.00871944]
[1749863250693,0.92829551,105630.0,105620.0,2.04121944]
[1749863250998,0.92829551,105630.0,105620.0,2.04121947]
[1749863251389,0.92829551,105630.0,105620.0,2.04121944]
[1749863251699,0.92829551,105630.0,105620.0,2.0308865]
[1749863251903,0.92829551,105630.0,105620.0,2.0412117]
[1749863252096,0.92829551,105630.0,105620.0,2.04121168]
[1749863252801,0.92829551,105630.0,105620.0,2.00871175]
[1749863252988,0.9284292,105630.0,105620.0,1.9983865]
[1749863253194,0.9284292,105630.0,105620.0,2.00871172]
[1749863253396,0.9284292,105630.0,105620.0,2.00872799]
[1749863253601,0.9284292,105630.0,105620.0,1.9983865]
[1749863253602,0.8698928,105630.0,105620.0,1.9983865]
[1749863253903,0.92843612,105630.0,105620.0,2.00872793]
[1749863254102,0.8698928,105630.0,105620.0,2.00872797]
[1749863254301,0.92843137,105630.0,105620.0,2.0288865]
[1749863254501,0.84063668,105630.0,105620.0,2.0835074]
[1749863254706,0.84063668,105630.0,105620.0,2.07316591]
[1749863254897,0.84063668,105630.0,105620.0,2.08350537]
[1749863255594,0.84063668,105630.0,105620.0,2.04680426]
[1749863255799,0.84063668,105630.0,105620.0,2.05714091]
[1749863255999,0.84063668,105630.0,105620.0,2.05714088]
[1749863256395,0.84063668,105630.0,105620.0,1.06626087]
[1749863256694,0.84063668,105630.0,105620.0,2.03884426]
[1749863256901,0.84063668,105630.0,105620.0,2.04918091]
[1749863257491,0.84063668,105630.0,105620.0,2.04918092]
[1749863257691,0.84063668,105630.0,105620.0,2.04918091]
[1749863258301,0.84063668,105630.0,105620.0,2.0491809]
[1749863258499,0.84063668,105630.0,105620.0,2.03884426]
[1749863258701,0.84063668,105630.0,105620.0,2.0491809]
[1749863259602,0.84063668,105630.0,105620.0,2.03884426]
[1749863259805,0.84063668,105630.0,105620.0,2.04918093]
[1749863259996,0.84063668,105630.0,105620.0,2.03884426]
[1749863260203,0.84063668,105630.0,105620.0,2.04918392]
[1749863260501,0.84063668,105630.0,105620.0,2.03884426]
[1749863260808,0.84063668,105630.0,105620.0,2.04918392]
[1749863260999,0.84063668,105630.0,105620.0,2.03884426]
[1749863261506,0.84063668,105630.0,105620.0,2.00490453]
[1749863262206,0.84063668,105630.0,105620.0,2.00490451]
[1749863262410,0.84063668,105630.0,105620.0,2.00490452]
[1749863262704,0.84063668,105630.0,105620.0,2.00490451]
[1749863263104,0.84063668,105630.0,105620.0,1.99456485]
[1749863263999,0.84063668,105630.0,105620.0,2.00490451]
[1749863264306,0.84063668,105630.0,105620.0,1.99456485]
[1749863264499,0.84063668,105630.0,105620.0,2.00490451]
[1749863264700,0.84063668,105630.0,105620.0,2.04918392]
[1749863264902,0.84063668,105630.0,105620.0,2.0491839]
[1749863265207,0.84063668,105630.0,105620.0,2.08198233]
[1749863265406,0.84063668,105630.0,105620.0,2.07164426]
[1749863265606,0.84063668,105630.0,105620.0,2.08198235]
[1749863265906,0.84063668,105630.0,105620.0,2.07164426]
[1749863266307,0.84063668,105630.0,105620.0,2.08196755]
[1749863266508,0.84063668,105630.0,105620.0,2.08196752]
[1749863267000,0.84063668,105630.0,105620.0,2.07164426]
[1749863267201,0.84063668,105630.0,105620.0,2.08196747]
[1749863267405,0.92843007,105630.0,105620.0,2.08196747]
[1749863267605,0.92843007,105630.0,105620.0,2.07920747]
[1749863267806,0.92843007,105630.0,105620.0,2.0792136]
[1749863268001,0.92843007,105630.0,105620.0,2.06888426]
[1749863268201,0.92843007,105630.0,105620.0,2.0792136]
[1749863268410,0.92843007,105630.0,105620.0,2.09921359]
[1749863268609,0.92843007,105630.0,105620.0,2.09922757]
[1749863269407,0.8698928,105630.0,105620.0,2.09922757]
[1749863269805,1.3345648,105630.0,105620.0,0.07876107]
[1749863270011,1.49677141,105630.0,105620.0,0.01448221]
[1749863270211,1.61425037,105630.0,105620.0,0.01448221]
[1749863270407,0.1892844,105610.0,105600.0,1.09924077]
[1749863270613,1.03915107,105610.0,105600.0,2.07940077]
[1749863270918,1.19105245,105610.0,105600.0,1.98780416]
[1749863271205,1.20105245,105610.0,105600.0,1.00764416]
[1749863271410,1.20101279,105610.0,105600.0,1.98780416]
[1749863272001,1.20101279,105610.0,105600.0,1.99780416]
[1749863273011,1.20101279,105610.0,105600.0,1.01764416]
[1749863273209,1.20101279,105610.0,105600.0,2.0126034]
[1749863273611,1.23361279,105610.0,105600.0,2.0126034]
[1749863274113,1.23361279,105610.0,105600.0,1.99780416]
[1749863274315,1.23361279,105610.0,105600.0,2.01260335]
[1749863274507,1.14571141,105610.0,105600.0,1.99780416]
[1749863274710,1.14571141,105610.0,105600.0,2.01260335]
[1749863274910,1.14571141,105610.0,105600.0,1.99780416]
[1749863275310,1.14571141,105610.0,105600.0,2.01260335]
[1749863275914,1.14571141,105610.0,105600.0,1.99780416]
[1749863276114,1.14571141,105610.0,105600.0,2.01260335]
[1749863276313,1.14571141,105610.0,105600.0,2.01260337]
[1749863276513,1.14571141,105610.0,105600.0,2.01102207]
[1749863276811,1.14571141,105610.0,105600.0,2.01260337]
[1749863277007,1.14571141,105610.0,105600.0,1.99780416]
[1749863277212,1.14571141,105610.0,105600.0,2.01102001]
[1749863277413,1.14571141,105610.0,105600.0,2.02581829]
[1749863277612,1.14571141,105610.0,105600.0,2.01260338]
[1749863277808,1.14571141,105610.0,105600.0,2.01101687]
[1749863278012,1.14571141,105610.0,105600.0,1.07595509]
[1749863278209,1.08221141,105610.0,105600.0,2.05623509]
[1749863278415,0.99055015,105610.0,105600.0,2.09222416]
[1749863278816,0.62975015,105610.0,105600.0,2.10702229]
[1749863279015,0.62975015,105610.0,105600.0,1.12674217]
[1749863279016,0.25895015,105610.0,105600.0,1.12674217]
[1749863279216,0.61975015,105610.0,105600.0,2.09222416]
[1749863279523,0.61975015,105610.0,105600.0,2.10702157]
[1749863279717,0.25895015,105610.0,105600.0,2.10702158]
[1749863280021,0.61975015,105610.0,105600.0,2.10702155]
[1749863280315,0.25895015,105610.0,105600.0,2.10702155]
[1749863280618,0.62475425,105620.0,105610.0,0.1892844]
[1749863280822,0.69442,105620.0,105610.0,0.26868148]
[1749863281020,0.61973795,105620.0,105610.0,0.26868148]
[1749863281328,0.61973795,105620.0,105610.0,0.2538844]
[1749863281522,0.61973795,105620.0,105610.0,0.26868036]
[1749863281722,0.3608,105620.0,105610.0,0.26868036]
[1749863282023,0.5500665,105620.0,105610.0,0.36295947]
[1749863282224,0.5500665,105620.0,105610.0,0.36295948]
[1749863282418,0.1892665,105620.0,105610.0,0.34816381]
[1749863282816,0.64483006,105630.0,105620.0,0.19340485]
[1749863283123,0.71449581,105630.0,105620.0,2.08252485]
[1749863283322,0.71449581,105630.0,105620.0,2.09732033]
[1749863283523,0.71449581,105630.0,105620.0,2.08252485]
[1749863284323,0.71849581,105630.0,105620.0,2.08252485]
[1749863284522,0.86495845,105630.0,105620.0,2.08252485]
[1749863284918,0.86495845,105630.0,105620.0,2.0783865]
[1749863285712,0.80639719,105630.0,105620.0,2.0783865]
[1749863285919,0.86486952,105630.0,105620.0,2.0783865]
[1749863286228,0.86486952,105630.0,105620.0,2.0783065]
[1749863286421,0.83799719,105630.0,105620.0,2.0783065]
[1749863289825,0.83799719,105630.0,105620.0,0.1892665]
[1749863290129,0.83799719,105630.0,105610.0,0.14609345]
[1749863290130,0.1892665,105620.0,105610.0,0.19293835]
[1749863290324,0.1892844,105610.0,105600.0,0.00014186]
[1749863290625,0.76968156,105610.0,105600.0,1.1827406]
[1749863290827,0.76968156,105610.0,105600.0,1.16936416]
[1749863291028,0.76968156,105610.0,105600.0,1.18274675]
[1749863291427,0.76968156,105610.0,105600.0,1.17928416]
[1749863291626,0.76968156,105610.0,105600.0,1.19266677]
[1749863292421,0.76968156,105610.0,105600.0,1.21168416]
[1749863292727,0.76968156,105610.0,105600.0,1.23950049]
[1749863293028,0.76968156,105610.0,105600.0,1.23950052]
[1749863293228,0.76968156,105610.0,105600.0,1.22611787]
[1749863293430,0.76968156,105610.0,105600.0,1.23950044]
[1749863293630,0.76968156,105610.0,105600.0,1.23950047]
[1749863294024,0.76968156,105610.0,105600.0,1.23950048]
[1749863294221,0.73768156,105610.0,105600.0,1.23950048]
[1749863294528,0.67824909,105610.0,105600.0,1.26970046]
[1749863294733,0.71034909,105610.0,105600.0,1.26906046]
[1749863295133,0.71034909,105610.0,105600.0,1.26906049]
[1749863295336,0.71034909,105610.0,105600.0,1.25414677]
[1749863295531,0.71034909,105610.0,105600.0,1.26894048]
[1749863295833,0.71034909,105610.0,105600.0,1.25555787]
[1749863296034,0.67824909,105610.0,105600.0,1.26900197]
[1749863296235,0.67824909,105610.0,105600.0,1.26895259]
[1749863296630,0.67824909,105610.0,105600.0,1.254213]
[1749863296833,0.05849894,105610.0,105600.0,1.25550358]
[1749863297036,0.82588382,105620.0,105610.0,0.19342275]
[1749863297335,0.84822907,105620.0,105610.0,0.31620616]
[1749863297539,0.84822907,105620.0,105610.0,0.30146741]
[1749863297733,0.84822907,105620.0,105610.0,0.31617436]
[1749863298039,0.84822907,105620.0,105610.0,0.31614814]
[1749863298228,0.74240973,105620.0,105610.0,1.13445558]
[1749863298428,0.74240973,105620.0,105610.0,1.13451388]
[1749863298630,0.74240973,105620.0,105610.0,1.13451382]
[1749863298832,0.66706705,105620.0,105610.0,1.13450843]
[1749863299032,0.66706705,105620.0,105610.0,2.11262829]
[1749863299331,0.66706705,105620.0,105610.0,2.11259296]
[1749863299534,0.66906705,105620.0,105610.0,2.11259275]
[1749863300245,0.66906705,105620.0,105610.0,2.1084544]
[1749863300545,0.66906705,105620.0,105610.0,2.10844367]
[1749863300838,0.66906705,105620.0,105610.0,2.09532085]
[1749863301039,0.66906705,105620.0,105610.0,2.0805244]
[1749863301431,0.66906705,105620.0,105610.0,2.0953205]
[1749863301633,0.66906705,105620.0,105610.0,2.09532058]
[1749863301941,0.66906705,105620.0,105610.0,2.09532053]
[1749863302440,0.66906705,105620.0,105610.0,2.09532064]
[1749863302835,0.66906705,105620.0,105610.0,2.0805244]
[1749863305143,0.66906705,105620.0,105610.0,2.09524086]
[1749863305344,0.66906705,105620.0,105610.0,2.0805244]
[1749863305544,0.66906705,105620.0,105610.0,2.09524085]
[1749863305842,0.66906705,105620.0,105610.0,2.09524086]
[1749863306042,0.66906705,105620.0,105610.0,2.0805244]
[1749863306243,0.66906705,105620.0,105610.0,2.09524084]
[1749863306836,0.66906705,105620.0,105610.0,2.09524088]
[1749863307038,0.66906705,105620.0,105610.0,2.0952409]
[1749863307347,0.66906705,105620.0,105610.0,2.09524087]
[1749863307542,0.66906705,105620.0,105610.0,2.09524084]
[1749863307744,0.66906705,105620.0,105610.0,2.09524085]
[1749863307947,0.66906705,105620.0,105610.0,2.09524087]
[1749863308144,0.66906705,105620.0,105610.0,2.0805244]
[1749863308842,0.66906705,105620.0,105610.0,2.09080459]
[1749863309441,0.66906705,105620.0,105610.0,2.0805244]
[1749863309643,0.66906705,105620.0,105610.0,2.09080459]
[1749863310442,0.5994013,105620.0,105610.0,2.0805244]
[1749863310749,0.5994013,105620.0,105610.0,2.09081513]
[1749863310946,0.67342363,105620.0,105610.0,2.09081513]
[1749863312037,0.67342363,105620.0,105610.0,2.09081512]
[1749863312439,0.67342363,105620.0,105610.0,2.13509453]
[1749863312642,0.67342363,105620.0,105610.0,2.0805244]
[1749863312850,0.67342363,105620.0,105610.0,2.13509086]
[1749863313050,0.67342363,105620.0,105610.0,2.09081144]
[1749863313442,0.67342363,105620.0,105610.0,2.09081143]
[1749863313643,0.74308938,105620.0,105610.0,2.09081146]
[1749863313945,0.74308938,105620.0,105610.0,2.09081145]
[1749863314542,0.74308938,105620.0,105610.0,2.12480381]
[1749863314849,0.74308938,105620.0,105610.0,2.13509087]
[1749863315049,0.74308938,105620.0,105610.0,2.13509088]
[1749863315447,0.74308938,105620.0,105610.0,2.13922923]
[1749863316147,0.74308938,105620.0,105610.0,2.13922792]
[1749863316446,0.74308938,105620.0,105610.0,2.12894216]
[1749863316750,0.74308938,105620.0,105610.0,2.13922795]
[1749863316950,0.74308938,105620.0,105610.0,2.12894216]
[1749863317144,0.74308938,105620.0,105610.0,2.13922795]
[1749863317350,0.74308938,105620.0,105610.0,2.12894216]
[1749863317749,0.74308938,105620.0,105610.0,2.13922794]
[1749863318047,0.74308938,105620.0,105610.0,2.12894216]
[1749863318247,0.74308938,105620.0,105610.0,2.13922794]
[1749863318552,0.74308938,105620.0,105610.0,2.13922796]
[1749863318858,0.74308938,105620.0,105610.0,2.13922794]
[1749863319054,0.74308938,105620.0,105610.0,2.12894216]
[1749863319553,0.74308938,105620.0,105610.0,2.13922794]
[1749863319748,0.74308938,105620.0,105610.0,2.13922793]
[1749863320047,0.74308938,105620.0,105610.0,2.13922792]
[1749863320244,0.002,105620.0,105610.0,2.55908979]
[1749863320439,0.002,105620.0,105610.0,2.60347851]
[1749863320643,0.002,105620.0,105610.0,2.58267851]
[1749863321253,0.002,105620.0,105610.0,2.5826767]
[1749863321748,0.002,105620.0,105610.0,2.58267667]
[1749863321948,0.002,105620.0,105610.0,2.94346864]
[1749863322549,0.002,105620.0,105610.0,2.94346869]
[1749863322753,0.00014186,105630.0,105620.0,0.1892666]
[1749863323048,0.00014186,105630.0,105620.0,1.07199888]
[1749863323256,0.00014186,105630.0,105620.0,1.08228211]
[1749863323458,0.00014186,105630.0,105620.0,1.08228209]
[1749863323649,0.00014186,105630.0,105620.0,0.72148216]
[1749863324253,0.00214186,105630.0,105620.0,1.08228218]
[1749863324442,0.00214186,105630.0,105620.0,0.72148217]
[1749863324841,0.00214186,105630.0,105620.0,1.08228217]
[1749863325053,0.00214186,105630.0,105620.0,0.71119888]
[1749863325649,0.00214186,105630.0,105620.0,0.72146013]
[1749863326055,0.00214186,105630.0,105620.0,0.7214837]
[1749863326458,0.00214186,105630.0,105620.0,1.08228372]
[1749863326659,0.00214186,105630.0,105620.0,1.07199888]
[1749863326853,0.00214186,105630.0,105620.0,0.72148373]
[1749863327051,0.00214186,105630.0,105620.0,0.71119888]
[1749863327855,0.00214186,105630.0,105620.0,0.72149387]
[1749863328354,0.00214186,105630.0,105620.0,0.71119888]
[1749863328553,0.00214186,105630.0,105620.0,0.72149387]
[1749863329263,0.00214186,105630.0,105620.0,1.69909387]
[1749863329451,0.00214186,105630.0,105620.0,1.69909384]
[1749863330260,0.00214186,105630.0,105620.0,1.69909383]
[1749863330456,0.00214186,105630.0,105620.0,1.70323218]
[1749863330761,0.00214186,105630.0,105620.0,1.69293723]
[1749863330961,0.00214186,105630.0,105620.0,1.61465282]
[1749863331367,0.00214186,105630.0,105620.0,1.61465129]
[1749863332157,0.00214186,105630.0,105620.0,1.6146513]
[1749863332354,0.00214186,105630.0,105620.0,1.61465125]